[Event "Betsys MČR v online bleskovém šachu 2021"]
[Site "Chess.com"]
[Date "2021.04.17"]
[Round "8"]
[White "Bavorak15"]
[Black "PetrSoucek"]
[Result "1/2-1/2"]
[WhiteElo "1630"]
[BlackElo "2004"]
[TimeControl "180+1"]
[EndTime "10:22:43 PDT"]
[Termination "Remíza – nedostatek materiálu"]

1. e4 {[%clk 0:03:00.9]} 1... c5 {[%clk 0:02:55.5]} 2. Nf3 {[%clk 0:03:00.3]}
2... d6 {[%clk 0:02:55.3]} 3. d4 {[%clk 0:03:00.8]} 3... cxd4 {[%clk 0:02:56.2]}
4. Nxd4 {[%clk 0:03:01.4]} 4... Nf6 {[%clk 0:02:56.4]} 5. Nc3 {[%clk 0:03:02]}
5... g6 {[%clk 0:02:56.1]} 6. f4 {[%clk 0:02:54.5]} 6... Nc6 {[%clk 0:02:48.9]}
7. Nxc6 {[%clk 0:02:43.6]} 7... bxc6 {[%clk 0:02:49.8]} 8. g4 {[%clk 0:02:31.4]}
8... Bxg4 {[%clk 0:02:48.3]} 9. Be2 {[%clk 0:02:28.2]} 9... Bxe2 {[%clk
0:02:40.4]} 10. Qxe2 {[%clk 0:02:29.1]} 10... Bg7 {[%clk 0:02:38.2]} 11. Be3
{[%clk 0:02:14.7]} 11... O-O {[%clk 0:02:33]} 12. f5 {[%clk 0:02:07.9]} 12... d5
{[%clk 0:02:32]} 13. e5 {[%clk 0:02:05.3]} 13... Nd7 {[%clk 0:02:29.6]} 14. fxg6
{[%clk 0:01:54.1]} 14... fxg6 {[%clk 0:02:24]} 15. e6 {[%clk 0:01:47.7]} 15...
Ne5 {[%clk 0:02:19.3]} 16. O-O-O {[%clk 0:01:46.2]} 16... Rb8 {[%clk 0:02:15.2]}
17. Bd4 {[%clk 0:01:45.3]} 17... Nc4 {[%clk 0:02:07.4]} 18. Bxg7 {[%clk
0:01:42.6]} 18... Kxg7 {[%clk 0:02:08.3]} 19. b3 {[%clk 0:01:30.9]} 19... Qa5
{[%clk 0:01:53.5]} 20. Na4 {[%clk 0:01:30.9]} 20... Nb6 {[%clk 0:01:38.8]} 21.
Qe5+ {[%clk 0:01:15.6]} 21... Kg8 {[%clk 0:01:36]} 22. Qc7 {[%clk 0:00:42.8]}
22... Qb4 {[%clk 0:01:18.1]} 23. Nxb6 {[%clk 0:00:31.6]} 23... Rxb6 {[%clk
0:01:16.1]} 24. Rhf1 {[%clk 0:00:23.6]} 24... Rbb8 {[%clk 0:00:34.5]} 25. Qxa7
{[%clk 0:00:12.9]} 25... Qc3 {[%clk 0:00:20.6]} 26. Qd4 {[%clk 0:00:11.8]} 26...
Qxd4 {[%clk 0:00:08.1]} 27. Rxf8+ {[%clk 0:00:11.4]} 27... Rxf8 {[%clk
0:00:08.4]} 28. Rxd4 {[%clk 0:00:11.8]} 28... Rf6 {[%clk 0:00:09]} 29. a4 {[%clk
0:00:06.5]} 29... Rxe6 {[%clk 0:00:09.6]} 30. a5 {[%clk 0:00:06.7]} 30... Rd6
{[%clk 0:00:08.1]} 31. a6 {[%clk 0:00:05.9]} 31... Rd8 {[%clk 0:00:08.2]} 32. a7
{[%clk 0:00:04.4]} 32... Ra8 {[%clk 0:00:07.6]} 33. Ra4 {[%clk 0:00:04.9]} 33...
Kf7 {[%clk 0:00:07.3]} 34. Ra6 {[%clk 0:00:04.4]} 34... h5 {[%clk 0:00:02.5]}
35. Kd2 {[%clk 0:00:04]} 35... g5 {[%clk 0:00:02.1]} 36. Ke3 {[%clk 0:00:04.3]}
36... g4 {[%clk 0:00:02.3]} 37. Kf4 {[%clk 0:00:04.1]} 37... e5+ {[%clk
0:00:01.7]} 38. Kxe5 {[%clk 0:00:03.9]} 38... Ke7 {[%clk 0:00:02.6]} 39. Kf4
{[%clk 0:00:03.9]} 39... Kd7 {[%clk 0:00:03.5]} 40. Kg5 {[%clk 0:00:03.4]} 40...
Kd6 {[%clk 0:00:04.2]} 41. Kxh5 {[%clk 0:00:03.7]} 41... Kc5 {[%clk 0:00:05.1]}
42. Kxg4 {[%clk 0:00:04]} 42... Kb5 {[%clk 0:00:05.5]} 43. Ra2 {[%clk 0:00:04]}
43... c5 {[%clk 0:00:05.9]} 44. c3 {[%clk 0:00:04]} 44... c4 {[%clk 0:00:05.6]}
45. bxc4+ {[%clk 0:00:04]} 45... Kxc4 {[%clk 0:00:05.2]} 46. Ra3 {[%clk
0:00:03.9]} 46... d4 {[%clk 0:00:03]} 47. cxd4 {[%clk 0:00:03.4]} 47... Kxd4
{[%clk 0:00:03.9]} 48. h4 {[%clk 0:00:03.9]} 48... Ke4 {[%clk 0:00:04.3]} 49. h5
{[%clk 0:00:03.9]} 49... Ke5 {[%clk 0:00:05.2]} 50. h6 {[%clk 0:00:03.1]} 50...
Kf6 {[%clk 0:00:06.1]} 51. Kh5 {[%clk 0:00:03]} 51... Kf7 {[%clk 0:00:05.4]} 52.
Rf3+ {[%clk 0:00:02.5]} 52... Ke6 {[%clk 0:00:04.5]} 53. Ra3 {[%clk 0:00:02.9]}
53... Kf7 {[%clk 0:00:04.1]} 54. h7 {[%clk 0:00:03.1]} 54... Kg7 {[%clk
0:00:04.2]} 55. Rg3+ {[%clk 0:00:02.7]} 55... Kh8 {[%clk 0:00:04.2]} 56. Ra3
{[%clk 0:00:01.5]} 56... Kxh7 {[%clk 0:00:04.3]} 57. Kg5 {[%clk 0:00:01.4]}
57... Kg7 {[%clk 0:00:04.6]} 58. Kf5 {[%clk 0:00:01.6]} 58... Kf7 {[%clk
0:00:05.3]} 59. Kg5 {[%clk 0:00:02]} 59... Ke7 {[%clk 0:00:05.8]} 60. Kf5 {[%clk
0:00:02.4]} 60... Kd6 {[%clk 0:00:06.2]} 61. Kg6 {[%clk 0:00:02.5]} 61... Kc5
{[%clk 0:00:06.2]} 62. Ra2 {[%clk 0:00:02.6]} 62... Kb4 {[%clk 0:00:06.3]} 63.
Ra1 {[%clk 0:00:03]} 63... Kc5 {[%clk 0:00:06.4]} 64. Ra6 {[%clk 0:00:03.3]}
64... Kb5 {[%clk 0:00:06.6]} 65. Ra1 {[%clk 0:00:03.8]} 65... Kb6 {[%clk
0:00:06.7]} 66. Ra2 {[%clk 0:00:04.1]} 66... Rxa7 {[%clk 0:00:05.4]} 67. Rxa7
{[%clk 0:00:04.3]} 67... Kxa7 {[%clk 0:00:06.3]} 1/2-1/2

[Event "Betsys MČR v online bleskovém šachu 2021"]
[Site "Chess.com"]
[Date "2021.04.17"]
[Round "8"]
[White "Simaril76"]
[Black "Skalicky"]
[Result "1-0"]
[WhiteElo "721"]
[BlackElo "759"]
[TimeControl "180+1"]
[EndTime "10:22:48 PDT"]
[Termination "Uživatel Simaril76 zvítězil matem"]

1. e4 {[%clk 0:03:00.9]} 1... c5 {[%clk 0:02:59.2]} 2. Nf3 {[%clk 0:03:01]} 2...
e6 {[%clk 0:02:59.2]} 3. d4 {[%clk 0:02:54.9]} 3... cxd4 {[%clk 0:02:58.8]} 4.
Nxd4 {[%clk 0:02:54]} 4... Nc6 {[%clk 0:02:58.5]} 5. Nxc6 {[%clk 0:02:52.5]}
5... bxc6 {[%clk 0:02:57.8]} 6. Bd3 {[%clk 0:02:45.2]} 6... Qc7 {[%clk
0:02:52.6]} 7. Qf3 {[%clk 0:02:38.5]} 7... d6 {[%clk 0:02:47.5]} 8. O-O {[%clk
0:02:34]} 8... Nf6 {[%clk 0:02:45.1]} 9. Bg5 {[%clk 0:02:24.7]} 9... Be7 {[%clk
0:02:41.9]} 10. Nc3 {[%clk 0:02:21.8]} 10... O-O {[%clk 0:02:38]} 11. Rad1
{[%clk 0:02:15.3]} 11... Rd8 {[%clk 0:02:32.4]} 12. Bxf6 {[%clk 0:02:04]} 12...
Bxf6 {[%clk 0:02:31.7]} 13. Qh3 {[%clk 0:01:59.4]} 13... g6 {[%clk 0:02:27.8]}
14. Rde1 {[%clk 0:01:53.5]} 14... Bb7 {[%clk 0:02:26.3]} 15. Ne2 {[%clk
0:01:47.2]} 15... Rd7 {[%clk 0:02:23.3]} 16. Nf4 {[%clk 0:01:45.5]} 16... Bg7
{[%clk 0:02:13.3]} 17. g3 {[%clk 0:01:44.1]} 17... e5 {[%clk 0:02:03.3]} 18. Ng2
{[%clk 0:01:40.6]} 18... Rad8 {[%clk 0:01:55.5]} 19. f4 {[%clk 0:01:32.6]} 19...
exf4 {[%clk 0:01:49.1]} 20. Nxf4 {[%clk 0:01:30.6]} 20... Bxb2 {[%clk
0:01:40.1]} 21. e5 {[%clk 0:01:05.5]} 21... dxe5 {[%clk 0:01:35.8]} 22. Ne2
{[%clk 0:00:58.1]} 22... Re7 {[%clk 0:01:28]} 23. Rf2 {[%clk 0:00:53.5]} 23...
Rde8 {[%clk 0:01:10.2]} 24. c4 {[%clk 0:00:48.1]} 24... Bd4 {[%clk 0:01:06.7]}
25. Nxd4 {[%clk 0:00:47.5]} 25... exd4 {[%clk 0:01:06.2]} 26. Rxe7 {[%clk
0:00:46]} 26... Rxe7 {[%clk 0:01:01.5]} 27. Kg2 {[%clk 0:00:43.4]} 27... Qd7
{[%clk 0:00:54.2]} 28. Rf4 {[%clk 0:00:36]} 28... Qxh3+ {[%clk 0:00:52.1]} 29.
Kxh3 {[%clk 0:00:34.4]} 29... Re3 {[%clk 0:00:46.9]} 30. Bb1 {[%clk 0:00:22.2]}
30... Bc8+ {[%clk 0:00:43.1]} 31. Kg2 {[%clk 0:00:20.1]} 31... Re2+ {[%clk
0:00:37.3]} 32. Kf1 {[%clk 0:00:19.4]} 32... Rxh2 {[%clk 0:00:34.1]} 33. Rf2
{[%clk 0:00:16.3]} 33... Rxf2+ {[%clk 0:00:33.2]} 34. Kxf2 {[%clk 0:00:16.4]}
34... Bf5 {[%clk 0:00:32.9]} 35. Bxf5 {[%clk 0:00:11.4]} 35... gxf5 {[%clk
0:00:32.4]} 36. Ke2 {[%clk 0:00:11.3]} 36... Kg7 {[%clk 0:00:32.4]} 37. Kd3
{[%clk 0:00:11.4]} 37... h5 {[%clk 0:00:31.3]} 38. Kxd4 {[%clk 0:00:11.5]} 38...
Kf6 {[%clk 0:00:29.4]} 39. Ke3 {[%clk 0:00:11.8]} 39... Kg5 {[%clk 0:00:28.8]}
40. Kf3 {[%clk 0:00:11.5]} 40... h4 {[%clk 0:00:26.3]} 41. gxh4+ {[%clk
0:00:10.6]} 41... Kxh4 {[%clk 0:00:26.2]} 42. Kf4 {[%clk 0:00:10.6]} 42... Kh5
{[%clk 0:00:23.8]} 43. Kxf5 {[%clk 0:00:10.8]} 43... Kh6 {[%clk 0:00:22.8]} 44.
Kf6 {[%clk 0:00:11]} 44... a5 {[%clk 0:00:20.4]} 45. Kxf7 {[%clk 0:00:10.8]}
45... Kg5 {[%clk 0:00:20.2]} 46. Ke6 {[%clk 0:00:11.3]} 46... Kf4 {[%clk
0:00:19.8]} 47. Kd6 {[%clk 0:00:11.9]} 47... Ke4 {[%clk 0:00:12.9]} 48. Kxc6
{[%clk 0:00:11.7]} 48... Kd4 {[%clk 0:00:12.5]} 49. Kb5 {[%clk 0:00:11.6]} 49...
a4 {[%clk 0:00:10.7]} 50. a3 {[%clk 0:00:10]} 50... Kc3 {[%clk 0:00:09]} 51.
Kxa4 {[%clk 0:00:09]} 51... Kxc4 {[%clk 0:00:09]} 52. Ka5 {[%clk 0:00:08.7]}
52... Kb3 {[%clk 0:00:09.1]} 53. a4 {[%clk 0:00:08.3]} 53... Ka3 {[%clk
0:00:08.3]} 54. Kb5 {[%clk 0:00:07.7]} 54... Kb3 {[%clk 0:00:08.3]} 55. a5
{[%clk 0:00:06.7]} 55... Ka3 {[%clk 0:00:07.7]} 56. a6 {[%clk 0:00:06.8]} 56...
Kb2 {[%clk 0:00:07.7]} 57. a7 {[%clk 0:00:06.9]} 57... Kc2 {[%clk 0:00:07.7]}
58. a8=Q {[%clk 0:00:06.4]} 58... Kd2 {[%clk 0:00:08]} 59. Qa3 {[%clk
0:00:06.2]} 59... Ke2 {[%clk 0:00:07]} 60. Kc4 {[%clk 0:00:06.4]} 60... Kf2
{[%clk 0:00:07.1]} 61. Kd4 {[%clk 0:00:06.6]} 61... Kg2 {[%clk 0:00:07.3]} 62.
Ke4 {[%clk 0:00:06.8]} 62... Kf2 {[%clk 0:00:07.6]} 63. Qf3+ {[%clk 0:00:05.4]}
63... Ke1 {[%clk 0:00:06.8]} 64. Qg2 {[%clk 0:00:03.3]} 64... Kd1 {[%clk
0:00:06.7]} 65. Ke3 {[%clk 0:00:03.4]} 65... Kc1 {[%clk 0:00:06.5]} 66. Kd3
{[%clk 0:00:03.3]} 66... Kb1 {[%clk 0:00:06]} 67. Kc3 {[%clk 0:00:03.4]} 67...
Ka1 {[%clk 0:00:05.5]} 68. Kb3 {[%clk 0:00:03.4]} 68... Kb1 {[%clk 0:00:05.1]}
69. Qg1# {[%clk 0:00:03.5]} 1-0

[Event "Betsys MČR v online bleskovém šachu 2021"]
[Site "Chess.com"]
[Date "2021.04.17"]
[Round "8"]
[White "JindrichT_CZE"]
[Black "Tomasbezdek07"]
[Result "1-0"]
[WhiteElo "2056"]
[BlackElo "1697"]
[TimeControl "180+1"]
[EndTime "10:22:49 PDT"]
[Termination "Uživatel JindrichT_CZE zvítězil na čas"]

1. e4 {[%clk 0:03:00.9]} 1... d6 {[%clk 0:02:59.7]} 2. d4 {[%clk 0:03:00.6]}
2... Nf6 {[%clk 0:03:00]} 3. f3 {[%clk 0:03:00.5]} 3... Nbd7 {[%clk 0:03:00.1]}
4. Be3 {[%clk 0:03:00.1]} 4... e5 {[%clk 0:03:00.2]} 5. d5 {[%clk 0:03:00]} 5...
Be7 {[%clk 0:02:58.8]} 6. Bd3 {[%clk 0:02:58.9]} 6... O-O {[%clk 0:02:57.6]} 7.
Nc3 {[%clk 0:02:58.6]} 7... c6 {[%clk 0:02:56.4]} 8. Nge2 {[%clk 0:02:52.9]}
8... Ne8 {[%clk 0:02:47.1]} 9. dxc6 {[%clk 0:02:49.7]} 9... bxc6 {[%clk
0:02:46.1]} 10. O-O {[%clk 0:02:47.3]} 10... Nc7 {[%clk 0:02:44.7]} 11. Qd2
{[%clk 0:02:46.1]} 11... d5 {[%clk 0:02:44.1]} 12. exd5 {[%clk 0:02:41.4]} 12...
cxd5 {[%clk 0:02:44.1]} 13. Bf2 {[%clk 0:02:41.2]} 13... f5 {[%clk 0:02:36.9]}
14. Nxd5 {[%clk 0:02:23.1]} 14... Nxd5 {[%clk 0:02:19.5]} 15. Bxf5 {[%clk
0:02:18.9]} 15... N7f6 {[%clk 0:02:14.1]} 16. Bd3 {[%clk 0:02:07.1]} 16... Qc7
{[%clk 0:01:55.2]} 17. a3 {[%clk 0:02:05.3]} 17... Bc5 {[%clk 0:01:54.5]} 18.
Bc4 {[%clk 0:02:01.9]} 18... Be6 {[%clk 0:01:46.9]} 19. Bd3 {[%clk 0:01:56.7]}
19... Rab8 {[%clk 0:01:43.2]} 20. b4 {[%clk 0:01:55.9]} 20... Bxf2+ {[%clk
0:01:41.7]} 21. Rxf2 {[%clk 0:01:53.3]} 21... Rfd8 {[%clk 0:01:33.9]} 22. c4
{[%clk 0:01:45.9]} 22... Nf4 {[%clk 0:01:32.8]} 23. Nxf4 {[%clk 0:01:44.2]}
23... exf4 {[%clk 0:01:29]} 24. Qc2 {[%clk 0:01:43.7]} 24... Rbc8 {[%clk
0:01:25.2]} 25. c5 {[%clk 0:01:42.5]} 25... a5 {[%clk 0:01:20.3]} 26. Re1 {[%clk
0:01:41.6]} 26... Bf7 {[%clk 0:01:17.3]} 27. Ba6 {[%clk 0:01:33.1]} 27... axb4
{[%clk 0:01:15.5]} 28. Bxc8 {[%clk 0:01:26.9]} 28... Rxc8 {[%clk 0:01:14.7]} 29.
axb4 {[%clk 0:01:26.4]} 29... Qb7 {[%clk 0:01:07.1]} 30. Qb2 {[%clk 0:01:18.9]}
30... Rb8 {[%clk 0:01:00.7]} 31. Rc1 {[%clk 0:01:12.2]} 31... Qxb4 {[%clk
0:00:57.2]} 32. Qxb4 {[%clk 0:01:10.9]} 32... Rxb4 {[%clk 0:00:56.8]} 33. c6
{[%clk 0:01:10.9]} 33... Rb8 {[%clk 0:00:57.1]} 34. c7 {[%clk 0:00:56.7]} 34...
Rc8 {[%clk 0:00:56.8]} 35. Rd2 {[%clk 0:00:55.6]} 35... Be6 {[%clk 0:00:45.7]}
36. Rd8+ {[%clk 0:00:48.9]} 36... Kf7 {[%clk 0:00:45.4]} 37. Rc4 {[%clk
0:00:44.5]} 37... Ke7 {[%clk 0:00:40.5]} 38. Rxf4 {[%clk 0:00:38.8]} 38... Rxc7
{[%clk 0:00:35.2]} 39. Ra8 {[%clk 0:00:36.3]} 39... Rc1+ {[%clk 0:00:33.2]} 40.
Kf2 {[%clk 0:00:36.2]} 40... Rc2+ {[%clk 0:00:33.2]} 41. Kg1 {[%clk 0:00:35.8]}
41... Bc4 {[%clk 0:00:22.5]} 42. Ra7+ {[%clk 0:00:33]} 42... Ke6 {[%clk
0:00:20.5]} 43. Rxg7 {[%clk 0:00:21.1]} 43... Rc1+ {[%clk 0:00:19.4]} 44. Kf2
{[%clk 0:00:18.6]} 44... Rf1+ {[%clk 0:00:19]} 45. Kg3 {[%clk 0:00:17]} 45...
Nh5+ {[%clk 0:00:18.3]} 46. Kg4 {[%clk 0:00:17.1]} 46... Nxg7 {[%clk 0:00:17]}
47. Rxc4 {[%clk 0:00:17]} 47... Rf2 {[%clk 0:00:15.2]} 48. Kg3 {[%clk
0:00:16.6]} 48... Rd2 {[%clk 0:00:14.2]} 49. Rc6+ {[%clk 0:00:16.4]} 49... Rd6
{[%clk 0:00:12.8]} 50. Rc7 {[%clk 0:00:16.1]} 50... Rd7 {[%clk 0:00:09.9]} 51.
Rc6+ {[%clk 0:00:15.8]} 51... Kf7 {[%clk 0:00:09.3]} 52. Ra6 {[%clk 0:00:15.8]}
52... Nf5+ {[%clk 0:00:08.3]} 53. Kg4 {[%clk 0:00:15.4]} 53... Ne3+ {[%clk
0:00:06.3]} 54. Kg3 {[%clk 0:00:14.7]} 54... Rd2 {[%clk 0:00:05.9]} 55. Ra7+
{[%clk 0:00:12.9]} 55... Kg6 {[%clk 0:00:05.7]} 56. Ra6+ {[%clk 0:00:12.6]}
56... Kg5 {[%clk 0:00:05.1]} 57. Ra5+ {[%clk 0:00:12.6]} 57... Nf5+ {[%clk
0:00:04.6]} 58. Kh3 {[%clk 0:00:11.6]} 58... Kg6 {[%clk 0:00:02.4]} 59. Ra6+
{[%clk 0:00:10]} 59... Kg7 {[%clk 0:00:02.7]} 60. g4 {[%clk 0:00:09.1]} 60...
Nd4 {[%clk 0:00:01.9]} 61. Kg3 {[%clk 0:00:09.2]} 61... Rd3 {[%clk 0:00:01.5]}
62. Kh4 {[%clk 0:00:08.1]} 62... Rxf3 {[%clk 0:00:01.3]} 63. h3 {[%clk
0:00:08.3]} 1-0

[Event "Betsys MČR v online bleskovém šachu 2021"]
[Site "Chess.com"]
[Date "2021.04.17"]
[Round "8"]
[White "Paulz64"]
[Black "Millbo64"]
[Result "1-0"]
[WhiteElo "2473"]
[BlackElo "1995"]
[TimeControl "180+1"]
[EndTime "10:22:55 PDT"]
[Termination "Uživatel Paulz64 zvítězil po vzdání soupeře"]

1. d4 {[%clk 0:03:00.9]} 1... c6 {[%clk 0:02:57.1]} 2. c4 {[%clk 0:03:00.9]}
2... d5 {[%clk 0:02:55.5]} 3. Nf3 {[%clk 0:03:01.5]} 3... Nf6 {[%clk 0:02:55.1]}
4. Qc2 {[%clk 0:03:01.5]} 4... Bg4 {[%clk 0:02:44.9]} 5. Ne5 {[%clk 0:02:55]}
5... Bh5 {[%clk 0:02:41.8]} 6. Qb3 {[%clk 0:02:54.7]} 6... Qb6 {[%clk 0:02:40]}
7. Qh3 {[%clk 0:02:54.7]} 7... dxc4 {[%clk 0:02:13.1]} 8. Qc8+ {[%clk
0:02:37.3]} 8... Qd8 {[%clk 0:02:12.8]} 9. Qxb7 {[%clk 0:02:37.3]} 9... Nbd7
{[%clk 0:02:05.1]} 10. Nxc6 {[%clk 0:02:07.2]} 10... Qc8 {[%clk 0:02:05.2]} 11.
Qxc8+ {[%clk 0:01:57.7]} 11... Rxc8 {[%clk 0:02:05.1]} 12. Ne5 {[%clk
0:01:58.2]} 12... Nb6 {[%clk 0:01:45.6]} 13. Nc3 {[%clk 0:01:49.7]} 13... e6
{[%clk 0:01:37.8]} 14. e3 {[%clk 0:01:33.9]} 14... Nfd5 {[%clk 0:01:25.6]} 15.
Bd2 {[%clk 0:01:16.1]} 15... f6 {[%clk 0:01:23.3]} 16. Nf3 {[%clk 0:01:10.9]}
16... Be7 {[%clk 0:01:05]} 17. Be2 {[%clk 0:01:10]} 17... O-O {[%clk 0:00:55.3]}
18. O-O {[%clk 0:01:09.8]} 18... Bf7 {[%clk 0:00:52]} 19. Rfc1 {[%clk
0:01:01.3]} 19... a6 {[%clk 0:00:49.4]} 20. Be1 {[%clk 0:00:34.9]} 20... Rc7
{[%clk 0:00:48.1]} 21. e4 {[%clk 0:00:20.1]} 21... Nf4 {[%clk 0:00:43.1]} 22.
Bf1 {[%clk 0:00:19.3]} 22... Rfc8 {[%clk 0:00:33.1]} 23. Rd1 {[%clk 0:00:18.9]}
23... Bh5 {[%clk 0:00:27.7]} 24. Rac1 {[%clk 0:00:16.1]} 24... Bxf3 {[%clk
0:00:19.1]} 25. gxf3 {[%clk 0:00:15.7]} 25... g5 {[%clk 0:00:19.4]} 26. Bd2
{[%clk 0:00:15.7]} 26... Ng6 {[%clk 0:00:19]} 27. Be3 {[%clk 0:00:14.9]} 27...
Nd7 {[%clk 0:00:16.5]} 28. Ne2 {[%clk 0:00:14.9]} 28... Kf7 {[%clk 0:00:16.2]}
29. Rc2 {[%clk 0:00:15.1]} 29... h6 {[%clk 0:00:14.6]} 30. Rdc1 {[%clk
0:00:14.9]} 30... f5 {[%clk 0:00:15]} 31. Nc3 {[%clk 0:00:13.9]} 31... f4 {[%clk
0:00:14.4]} 32. Bd2 {[%clk 0:00:14.1]} 32... Nh4 {[%clk 0:00:14.6]} 33. Be2
{[%clk 0:00:13.5]} 33... Bb4 {[%clk 0:00:14.6]} 34. Na4 {[%clk 0:00:13.2]} 34...
Bxd2 {[%clk 0:00:14.6]} 35. Rxd2 {[%clk 0:00:13.8]} 35... Rb8 {[%clk 0:00:13.6]}
36. Rdc2 {[%clk 0:00:13.6]} 36... Rbc8 {[%clk 0:00:13.7]} 37. Rxc4 {[%clk
0:00:12.1]} 37... Rxc4 {[%clk 0:00:13.7]} 38. Rxc4 {[%clk 0:00:12.4]} 38... Rxc4
{[%clk 0:00:13.7]} 39. Bxc4 {[%clk 0:00:13]} 39... a5 {[%clk 0:00:12.9]} 40. Be2
{[%clk 0:00:12.7]} 40... Ke7 {[%clk 0:00:12.6]} 41. Nc3 {[%clk 0:00:12.5]} 41...
Nb6 {[%clk 0:00:12.3]} 42. Kf1 {[%clk 0:00:12.4]} 42... Kd6 {[%clk 0:00:12.3]}
43. Ke1 {[%clk 0:00:12.8]} 43... Ng6 {[%clk 0:00:11]} 44. Kd2 {[%clk 0:00:12.9]}
44... Ne7 {[%clk 0:00:10.4]} 45. Nb5+ {[%clk 0:00:12.9]} 45... Kc6 {[%clk
0:00:09.9]} 46. Nc3 {[%clk 0:00:13.8]} 46... h5 {[%clk 0:00:09.3]} 47. Bb5+
{[%clk 0:00:13.8]} 47... Kc7 {[%clk 0:00:08.9]} 48. Be2 {[%clk 0:00:14.4]} 48...
Nc6 {[%clk 0:00:08.9]} 49. Nb5+ {[%clk 0:00:14.9]} 49... Kd7 {[%clk 0:00:08.5]}
50. a3 {[%clk 0:00:15.5]} 50... Nc8 {[%clk 0:00:06.3]} 51. Kc3 {[%clk
0:00:15.6]} 51... Nd6 {[%clk 0:00:06.4]} 52. Nxd6 {[%clk 0:00:15.7]} 52... Kxd6
{[%clk 0:00:06.9]} 53. b4 {[%clk 0:00:16.6]} 53... axb4+ {[%clk 0:00:06.7]} 54.
axb4 {[%clk 0:00:17.1]} 54... Ne7 {[%clk 0:00:04.7]} 55. b5 {[%clk 0:00:16.7]}
55... Nc8 {[%clk 0:00:04.3]} 56. Kb4 {[%clk 0:00:15.8]} 56... Kc7 {[%clk
0:00:04.6]} 57. Kc5 {[%clk 0:00:14.9]} 57... Nb6 {[%clk 0:00:05.5]} 58. d5
{[%clk 0:00:15]} 58... exd5 {[%clk 0:00:04.3]} 59. exd5 {[%clk 0:00:15.2]} 59...
Nd7+ {[%clk 0:00:05.2]} 60. Kd4 {[%clk 0:00:14.9]} 60... Kd6 {[%clk 0:00:05.5]}
61. Bd3 {[%clk 0:00:15.1]} 61... Nb6 {[%clk 0:00:05.4]} 62. Bg6 {[%clk
0:00:14.9]} 62... Nxd5 {[%clk 0:00:04.3]} 63. Bxh5 {[%clk 0:00:14.8]} 63... Nb6
{[%clk 0:00:03.8]} 64. Bg6 {[%clk 0:00:14.3]} 64... Ke6 {[%clk 0:00:03.8]} 65.
Kc5 {[%clk 0:00:12.3]} 65... Na4+ {[%clk 0:00:03.8]} 66. Kc6 {[%clk 0:00:11.9]}
66... Kf6 {[%clk 0:00:04.2]} 67. Be4 {[%clk 0:00:11.2]} 67... Ke5 {[%clk
0:00:03.9]} 68. b6 {[%clk 0:00:11.1]} 68... Nxb6 {[%clk 0:00:02.8]} 69. Kxb6
{[%clk 0:00:11.4]} 69... g4 {[%clk 0:00:03.4]} 70. Kc6 {[%clk 0:00:09.4]} 70...
gxf3 {[%clk 0:00:03.6]} 71. Bxf3 {[%clk 0:00:09.3]} 71... Kf5 {[%clk 0:00:03.7]}
72. h4 {[%clk 0:00:09.7]} 1-0